bitfinex/quotes_ETHUSD_20241109
["timestamp","ask_amount","ask_price","bid_price","bid_amount"]
[1731131565483,0.01,3045.0,3044.8,0.01]
[1731131566129,0.01,3045.0,3044.7,0.01]
[1731131566332,0.01,3045.0,3044.7,0.07567598]
[1731131566536,0.49571526,3045.4,3045.0,3.0]
[1731131566732,0.49571526,3045.4,3045.1,0.01]
[1731131567267,0.49571526,3045.4,3045.3,0.01]
[1731131568157,0.49571526,3045.4,3045.2,0.01]
[1731131568369,0.49571526,3045.4,3045.3,3.36263173]
[1731131568679,0.49571526,3045.4,3045.3,6.36263173]
[1731131569183,0.49571526,3045.4,3045.3,6.37263173]
[1731131569535,0.49571526,3045.4,3045.3,7.74933173]
[1731131569737,0.49571526,3045.4,3045.3,7.19933173]
[1731131570468,0.49571526,3045.4,3045.3,7.74933173]
[1731131571037,0.1397942,3046.4,3046.3,0.01]
[1731131571478,0.1397942,3046.4,3046.3,6.37263173]
[1731131572187,0.1397942,3046.4,3046.3,6.36263173]
[1731131572342,0.1397942,3046.4,3046.3,6.37263173]
[1731131573391,0.1397942,3046.4,3046.3,7.49765977]
[1731131573684,0.1397942,3046.4,3046.3,5.93578984]
[1731131574196,0.1397942,3046.4,3046.3,2.17848984]
[1731131574343,0.1397942,3046.4,3046.3,0.01]
[1731131574755,0.1397942,3046.4,3046.3,3.37263173]
[1731131574958,0.1397942,3046.4,3046.3,6.37263173]
[1731131575161,0.1397942,3046.4,3046.3,3.37263173]
[1731131575873,0.1397942,3046.4,3045.6,0.7573]
[1731131575874,0.1397942,3046.4,3046.0,0.01]
[1731131576393,0.8197,3046.3,3045.9,0.52848397]
[1731131576599,0.8197,3046.3,3045.6,0.01]
[1731131576973,0.8197,3046.3,3045.6,0.53699257]
[1731131577183,0.8197,3046.3,3045.6,0.01]
[1731131577388,0.03816906,3046.2,3045.0,3.36263173]
[1731131577703,0.03816906,3046.2,3045.0,0.01]
[1731131577704,0.8197,3046.1,3045.0,0.01]
[1731131577911,0.8197,3045.9,3044.8,3.36263173]
[1731131578202,0.8197,3045.7,3044.3,3.36263173]
[1731131578369,0.8197,3045.5,3044.3,3.36263173]
[1731131578575,0.8197,3045.5,3044.5,0.01]
[1731131578754,0.8197,3045.5,3044.7,0.01]
[1731131578962,0.8197,3045.5,3044.5,0.01]
[1731131579465,0.8197,3045.5,3043.8,0.39520123]
[1731131579466,0.8197,3045.5,3044.1,0.01]
[1731131579663,0.8197,3045.5,3044.3,0.01]
[1731131579863,0.03816906,3045.4,3044.3,0.01]
[1731131580504,0.8197,3045.5,3044.6,3.37263173]
[1731131580701,0.8197,3045.5,3044.6,3.36263173]
[1731131580911,0.03816906,3046.2,3044.2,0.01]
[1731131580912,0.03816906,3045.4,3044.3,3.0]
[1731131581207,0.763,3045.7,3044.2,3.36263173]
[1731131581496,0.80116906,3045.6,3043.8,3.76783296]
[1731131581698,0.763,3045.4,3043.8,3.37263173]
[1731131581865,0.763,3045.2,3043.8,3.37263173]
[1731131582063,0.763,3045.2,3044.6,3.37263173]
[1731131582262,0.763,3045.2,3044.6,3.36263173]
[1731131582463,0.763,3045.2,3044.6,3.37263173]
[1731131582684,0.763,3045.2,3044.7,0.06568154]
[1731131583096,0.763,3045.2,3044.9,0.01]
[1731131583305,0.03816906,3046.3,3044.9,0.01]
[1731131583306,0.763,3045.7,3045.1,3.0]
[1731131583463,0.763,3045.7,3045.2,0.06566834]
[1731131584116,0.763,3045.7,3045.4,0.01]
[1731131584315,0.1397942,3046.4,3045.4,0.01]
[1731131584316,0.763,3046.2,3045.7,0.01]
[1731131584466,0.1397942,3046.4,3046.1,0.01]
[1731131584899,0.1397942,3046.4,3046.1,0.07564393]
[1731131585216,0.1397942,3046.4,3046.2,0.06564378]
[1731131585918,0.1397942,3046.4,3046.0,0.06564469]
[1731131586405,0.1397942,3046.4,3046.0,0.83864469]
[1731131586971,0.763,3046.3,3046.0,0.82864469]
[1731131587202,0.03816906,3046.2,3045.1,3.0]
[1731131587403,0.03816906,3046.2,3045.2,0.763]
[1731131587920,0.03816906,3046.2,3045.0,3.37263173]
[1731131588271,0.03816906,3046.2,3045.1,0.763]
[1731131588472,0.03816906,3046.2,3045.3,0.01]
[1731131588774,0.03816906,3046.2,3045.1,3.763]
[1731131589195,0.763,3046.1,3045.1,3.763]
[1731131589405,0.03589899,3046.0,3045.1,0.763]
[1731131589995,0.763,3046.1,3045.2,0.06566749]
[1731131590196,0.763,3046.1,3045.1,0.773]
[1731131591279,0.03589899,3046.0,3044.9,6.36263173]
[1731131591787,0.03589899,3046.0,3045.0,0.763]
[1731131592719,0.03589899,3046.0,3045.0,0.773]
[1731131592922,0.03589899,3046.0,3045.2,0.01]
[1731131593076,0.763,3046.1,3045.2,0.01]
[1731131593975,0.763,3046.1,3045.0,0.763]
[1731131594175,0.763,3046.1,3045.0,0.773]
[1731131594836,0.763,3046.1,3045.4,0.01]
[1731131594973,0.763,3046.1,3045.4,3.01]
[1731131596716,0.763,3046.1,3045.4,3.0]
[1731131597647,0.76251833,3046.1,3045.4,3.0]
[1731131598418,0.1397942,3046.4,3045.7,3.36263173]
[1731131598587,0.1397942,3046.4,3045.8,3.0]
[1731131599378,0.1397942,3046.4,3046.2,3.0]
[1731131600609,0.9673942,3046.4,3046.2,3.0]
[1731131600785,0.1397942,3046.4,3046.2,3.0]
[1731131600987,0.1397942,3046.4,3045.8,3.0]
[1731131601184,0.1397942,3046.4,3045.7,3.36263173]
[1731131601512,0.03589899,3046.3,3045.7,3.36263173]
[1731131601689,0.03589899,3046.3,3045.4,0.44210011]
[1731131601690,0.8219,3046.2,3045.4,0.44210011]
[1731131601883,0.03589899,3046.1,3045.4,0.44210011]
[1731131602944,0.03589899,3046.1,3045.4,0.50776604]
[1731131603236,0.03589899,3046.1,3045.4,3.44210011]
[1731131603539,0.03589899,3046.1,3045.4,3.0]
[1731131604315,0.8219,3046.0,3044.9,3.36263173]
[1731131604520,0.03589899,3045.9,3044.9,3.36263173]
[1731131605248,0.8219,3045.8,3044.5,3.36263173]
[1731131605543,0.03589899,3045.7,3044.5,3.36263173]
[1731131605751,0.03589899,3045.7,3044.8,0.8219]
[1731131606058,0.03589899,3045.7,3044.6,0.06568719]
[1731131606219,0.03589899,3045.7,3044.9,3.36263173]
[1731131606833,0.03589899,3045.7,3045.0,3.0]
[1731131609738,0.03589899,3045.7,3044.6,0.8219]
[1731131609943,0.8219,3045.6,3044.2,0.34064726]
[1731131610152,0.8219,3045.4,3044.2,3.36263173]
[1731131610302,0.03589899,3045.3,3044.6,3.36263173]
[1731131610503,0.03589899,3045.3,3044.2,3.96812073]
[1731131610702,0.03589899,3045.3,3044.2,3.97812073]
[1731131611204,0.03589899,3045.3,3044.2,3.96812073]
[1731131611739,0.03589899,3045.3,3044.6,3.36263173]
[1731131612046,0.8219,3045.4,3044.6,3.37263173]
[1731131612599,0.8219,3045.4,3044.7,3.0]
[1731131612935,0.03589899,3045.3,3044.3,3.0]
[1731131613539,0.03589899,3045.3,3044.6,3.36263173]
[1731131614339,0.8219,3045.2,3044.2,3.96812073]
[1731131614514,0.03589899,3045.1,3044.3,0.01]
[1731131614723,0.03589899,3045.1,3044.2,3.96812073]
[1731131614724,0.8219,3045.2,3044.2,3.97812073]
[1731131614929,0.03589899,3045.1,3044.2,0.605489]
[1731131615130,0.03589899,3045.1,3044.2,3.96812073]
[1731131615641,0.03589899,3045.1,3044.3,3.0]
[1731131617528,0.03589899,3045.1,3044.2,0.605489]
[1731131617741,0.8219,3045.0,3044.2,0.605489]
[1731131618070,0.8219,3044.8,3044.1,0.34097346]
[1731131618352,0.8219,3044.8,3042.7,0.05679209]
[1731131618353,0.01,3044.4,3043.6,0.8219]
[1731131618525,0.8219,3044.3,3043.1,3.36263173]
[1731131618724,0.03589899,3044.2,3043.1,3.36263173]
[1731131618926,0.8219,3044.1,3043.1,4.67622073]
[1731131619127,0.03589899,3044.0,3043.1,5.0627095]
[1731131619643,0.03589899,3044.0,3043.0,0.34108646]
[1731131619644,0.8219,3043.9,3043.0,0.34108646]
[1731131619815,0.8219,3043.9,3042.8,0.38648877]
[1731131619816,0.03589899,3043.8,3043.1,0.06571696]
[1731131620015,0.03589899,3043.8,3043.1,0.8219]
[1731131620711,0.03589899,3043.8,3042.9,3.36263173]
[1731131620954,0.03589899,3043.8,3042.9,3.42835072]
[1731131621156,0.03589899,3043.8,3043.1,0.8219]
[1731131621650,0.8219,3043.9,3043.4,3.0]
[1731131623519,0.81886972,3043.9,3043.4,3.0]
[1731131624258,0.03589899,3044.9,3044.0,0.01]
[1731131624564,0.1397942,3046.4,3044.0,0.01]
[1731131624565,0.01,3045.7,3044.3,3.36263173]
[1731131624722,0.03589899,3045.6,3044.3,3.36263173]
[1731131624924,0.01,3045.7,3044.3,3.36263173]
[1731131625292,0.01,3045.7,3044.0,3.0]
[1731131625579,0.01,3045.2,3043.8,3.0]
[1731131625990,0.01,3045.4,3043.8,3.0]
[1731131626159,0.03589899,3045.9,3043.7,3.36263173]
[1731131626160,0.01,3045.2,3043.7,3.36263173]
[1731131626493,0.8076,3044.8,3043.3,3.36263173]
[1731131626687,0.01,3044.9,3043.3,3.36263173]
[1731131626688,0.8076,3044.6,3043.3,3.36263173]
[1731131626876,0.03589899,3044.5,3043.7,3.37263173]
[1731131627058,0.8076,3044.6,3043.7,3.37263173]
[1731131627671,0.8076,3044.6,3043.8,3.0]
[1731131627877,0.8076,3044.6,3044.1,3.36263173]
[1731131628257,0.8076,3044.6,3044.1,3.21263173]
[1731131629151,0.8076,3045.5,3044.1,3.21263173]
[1731131629393,0.03589899,3045.4,3044.1,3.18263173]
[1731131630267,0.8076,3045.3,3044.1,3.18263173]
[1731131630597,0.8076,3045.1,3044.1,3.18263173]
[1731131630759,0.03589899,3045.2,3043.7,6.36263173]
[1731131630760,0.84349899,3045.0,3043.7,6.36263173]
[1731131631158,0.84349899,3045.0,3043.7,6.42833277]
[1731131631393,0.84349899,3045.0,3044.1,3.36263173]
[1731131633586,0.84349899,3045.0,3044.1,3.36253173]
[1731131634821,0.84349899,3045.0,3044.2,3.06569773]
[1731131635015,0.8161,3045.8,3044.8,3.36263173]
[1731131635199,0.03589899,3045.7,3044.9,3.0]
[1731131635996,0.8161,3045.8,3044.9,3.0]
[1731131635997,0.80199899,3045.8,3044.9,3.0]
[1731131639430,0.80199899,3045.8,3044.4,3.36263173]
[1731131639618,0.80199899,3045.8,3044.5,3.0]
[1731131640352,0.01,3045.6,3044.0,3.36263173]
[1731131640553,0.8161,3045.5,3044.0,3.36263173]
[1731131640859,0.01,3045.3,3044.0,3.36263173]
[1731131641145,0.8161,3045.2,3044.0,3.36263173]
[1731131641348,0.8261,3045.2,3044.0,3.36263173]
[1731131642009,0.8261,3045.2,3043.6,3.36263173]
[1731131642410,0.7659,3044.9,3043.6,3.36263173]
[1731131643551,0.7659,3044.9,3044.0,3.36263173]
[1731131644430,0.7659,3044.9,3044.1,0.01]
[1731131644749,0.7659,3044.9,3044.4,3.36263173]
[1731131645549,0.7659,3044.9,3044.4,3.42831845]
[1731131645927,0.7659,3046.0,3044.4,3.42831845]
[1731131646129,0.7659,3046.0,3044.0,0.7759]
[1731131646130,0.7659,3046.0,3044.9,3.0]
[1731131646728,0.7659,3046.0,3045.2,3.37263173]
[1731131646941,0.7659,3046.0,3045.6,3.36263173]
[1731131647460,0.1397942,3046.4,3045.7,3.7759]
[1731131648227,0.1397942,3046.4,3045.8,0.01]
[1731131648538,0.1397942,3046.4,3046.1,3.0]
[1731131648852,0.1397942,3046.4,3046.2,0.01]
[1731131649557,0.1397942,3046.4,3046.2,0.07564598]
[1731131650273,0.1397942,3046.4,3046.2,0.01]
[1731131651770,0.06137843,3046.4,3046.2,0.01]
[1731131652271,0.95959519,3047.5,3047.3,0.7859]
[1731131652479,0.95959519,3047.5,3047.4,6.36263173]
[1731131652661,0.95959519,3047.5,3047.4,3.0]
[1731131652861,0.95959519,3047.5,3047.1,0.53882065]
[1731131652862,0.95959519,3047.5,3047.1,3.53882065]
[1731131653837,0.95959519,3047.5,3047.4,6.36263173]
[1731131654173,0.05875249,3048.0,3047.9,0.7859]
[1731131654344,0.02029108,3048.4,3048.1,0.01]
[1731131654851,0.7659,3048.3,3047.5,3.36263173]
[1731131655037,0.7659,3048.3,3047.6,3.0]
[1731131655239,0.7659,3048.3,3046.8,0.45369454]
[1731131655240,0.7659,3048.3,3047.1,3.36263173]
[1731131656577,0.7659,3048.3,3047.2,3.0]
[1731131657152,0.7659,3048.3,3047.1,3.36263173]
[1731131657153,0.7659,3048.3,3047.6,3.0]
[1731131657800,0.7659,3048.3,3047.5,3.36263173]
[1731131658368,0.7659,3048.3,3047.3,0.01]
[1731131659158,0.02029108,3048.4,3048.0,3.36263173]
[1731131659390,0.7659,3048.3,3047.7,3.01]
[1731131659897,0.7659,3048.3,3047.7,3.0]
[1731131660109,0.7659,3048.3,3047.2,0.01]
[1731131660287,0.7659,3048.3,3047.2,3.07562512]
[1731131660593,0.02029108,3048.4,3048.1,0.01]
[1731131660892,0.02029108,3048.4,3048.0,3.36263173]
[1731131661092,0.02029108,3048.4,3048.3,0.01]
[1731131661294,0.02029108,3048.4,3048.3,0.07560108]
[1731131661496,0.02029108,3048.4,3048.3,0.0756011]
[1731131662166,0.02029108,3048.4,3048.3,0.01]
[1731131662361,0.02029108,3048.4,3048.3,0.07560116]
[1731131662563,0.02029108,3048.4,3048.3,0.06560116]
[1731131662761,0.02029108,3048.4,3047.9,0.01]
[1731131663207,0.02029108,3048.4,3047.8,0.01]
[1731131663494,0.02029108,3048.4,3048.3,0.01]
[1731131664035,0.2449793,3049.0,3048.3,0.01]
[1731131664197,0.2449793,3049.0,3048.5,0.01]
[1731131664398,0.2449793,3049.0,3048.1,0.01]
[1731131664631,0.2449793,3049.0,3048.3,0.01]
[1731131665022,0.2449793,3049.0,3048.1,0.01]
[1731131665201,0.7779,3048.9,3047.9,6.37263173]
[1731131665397,0.7779,3048.9,3048.0,0.01]
[1731131665814,0.7779,3048.9,3047.9,6.36263173]
[1731131666011,0.7779,3048.9,3047.9,6.37263173]
[1731131666836,0.7779,3048.9,3047.9,0.01]
[1731131667201,0.7779,3048.9,3048.1,0.01]
[1731131667547,0.7779,3048.9,3047.8,3.36263173]
[1731131667709,0.7779,3048.9,3047.9,0.01]
[1731131667918,0.7779,3048.9,3047.9,3.0]
[1731131668307,0.7779,3048.9,3047.9,3.01]
[1731131668929,0.2449793,3049.0,3048.1,0.01]
[1731131669111,0.2449793,3049.0,3048.4,0.01]
[1731131669523,0.7779,3048.9,3048.4,0.01]
[1731131670050,0.2449793,3049.0,3048.8,0.01]
[1731131671228,0.2449793,3049.0,3048.3,0.01]
[1731131671623,0.2449793,3049.0,3048.4,0.01]
[1731131672332,0.2449793,3049.0,3048.7,0.01]
[1731131672944,0.2449793,3049.0,3048.4,0.01]
[1731131673828,0.2449793,3049.0,3047.9,0.7869]
[1731131674034,0.2449793,3049.0,3047.7,3.36263173]
[1731131674035,0.7779,3048.9,3048.2,0.01]
[1731131674463,0.7779,3048.9,3047.8,3.0]
[1731131674464,0.7779,3048.9,3047.9,0.01]
[1731131676755,0.7779,3048.9,3047.7,0.01]
[1731131676934,0.7779,3048.9,3047.5,0.01]
[1731131677142,0.7779,3048.9,3047.5,0.0756206]
[1731131677345,0.7779,3048.9,3047.0,0.01]
[1731131677667,0.7779,3048.2,3046.8,0.01]
[1731131677980,0.7779,3048.2,3047.5,0.01]
[1731131678182,0.7779,3048.2,3047.3,0.01]
[1731131678341,0.7779,3048.2,3047.5,0.01]
[1731131680272,0.7779,3048.2,3047.3,0.01]
[1731131680497,0.7779,3048.2,3047.1,3.01]
[1731131680671,0.7779,3048.2,3047.1,0.01]
[1731131680974,0.7779,3048.2,3047.0,0.7779]
[1731131681177,0.7779,3048.2,3046.9,0.01]
[1731131681178,0.7779,3048.2,3047.1,0.01]
[1731131681704,0.7779,3048.2,3047.5,0.01]
[1731131681864,0.7779,3048.2,3047.5,3.01]
[1731131682253,0.7779,3048.2,3047.5,0.06562161]
[1731131682452,0.7779,3048.2,3046.8,0.01]
[1731131682986,0.7779,3048.2,3046.5,0.35061914]
[1731131683340,0.7779,3048.2,3046.8,0.01]
[1731131683653,0.01,3048.4,3046.8,0.01]
[1731131683654,0.00789217,3047.1,3046.8,0.01]
[1731131684481,0.00789217,3047.1,3046.8,3.01]
[1731131684951,0.00789217,3047.1,3046.8,3.0]
[1731131685152,0.00789217,3047.1,3046.5,0.34061914]
[1731131685669,0.00789217,3047.1,3046.4,0.01]
[1731131686586,0.00789217,3047.1,3046.4,3.35048739]
[1731131687379,0.00789217,3047.1,3046.6,0.01]
[1731131687538,0.00789217,3047.1,3046.8,3.01]
[1731131689279,0.00789217,3047.1,3047.0,0.01]
[1731131689864,0.00789217,3047.1,3046.8,3.01]
[1731131690082,0.00789217,3047.1,3046.7,3.0]
[1731131690259,0.00789217,3047.1,3046.6,3.36263173]
[1731131690260,0.7901,3047.0,3046.6,3.36263173]
[1731131691471,0.7901,3047.0,3046.4,0.01]
[1731131691472,0.7901,3047.0,3046.4,3.0]
[1731131691674,0.7901,3047.0,3046.2,0.01]
[1731131691990,0.7901,3047.0,3046.2,3.01]
[1731131692400,0.55,3046.8,3045.9,0.34034344]
[1731131692558,0.55,3046.8,3045.2,3.37263173]
[1731131692559,0.7768,3046.8,3045.2,3.37263173]
[1731131693009,0.7768,3046.8,3045.2,3.36263173]
[1731131693158,0.7768,3046.8,3045.0,0.3503606]
[1731131693471,0.01,3046.9,3044.7,0.192]
[1731131693472,0.7768,3045.9,3044.8,3.36263173]
[1731131694668,0.7768,3045.9,3044.9,3.01]
[1731131697563,0.7768,3045.9,3045.1,0.01]
[1731131698004,0.7768,3045.9,3045.0,0.06567853]
[1731131698163,0.7768,3045.9,3044.9,3.01]
[1731131698363,0.7768,3045.9,3044.9,0.01]
[1731131698573,0.7768,3045.9,3044.6,0.01]
[1731131700407,0.55,3045.9,3044.3,0.34043305]
[1731131700586,0.7768,3045.7,3043.8,0.07569856]
[1731131700903,0.7768,3045.7,3044.2,0.01]
[1731131701410,0.7768,3045.7,3044.5,0.01]
[1731131702012,0.7768,3045.7,3044.3,0.01]
[1731131703773,0.7768,3045.7,3043.9,0.01]
[1731131704209,0.7768,3045.7,3043.9,3.37263173]
[1731131704482,0.7768,3045.7,3044.3,3.37263173]
[1731131704668,0.7768,3045.7,3044.4,3.06569077]
[1731131704870,0.7768,3045.7,3044.4,3.01]
[1731131706512,0.7768,3045.7,3044.4,3.07568722]
[1731131707072,0.7768,3045.7,3044.9,0.01]
[1731131708137,0.01789217,3047.1,3045.5,3.36263173]
[1731131708439,0.01789217,3047.1,3045.7,0.01]
[1731131708440,0.7845,3047.0,3045.7,0.01]
[1731131708716,0.7845,3047.0,3046.2,0.01]
[1731131709481,0.7845,3047.0,3046.0,0.01]
[1731131710178,0.7845,3047.0,3045.8,0.01]
[1731131710406,0.7845,3047.0,3046.0,0.01]
[1731131710906,0.00789217,3047.1,3046.4,0.01]
[1731131711828,0.00789217,3047.1,3046.8,0.01]
[1731131712197,0.00789217,3047.1,3046.6,3.01]
[1731131712498,0.00789217,3047.1,3046.5,3.36263173]
[1731131712694,0.00789217,3047.1,3046.7,0.01]
[1731131713883,0.00789217,3047.1,3046.4,0.01]
[1731131714084,0.00789217,3047.1,3046.2,3.01]
[1731131714290,0.7845,3047.0,3046.2,3.0]
[1731131714620,0.7845,3047.0,3046.0,0.01]
[1731131715694,0.7845,3047.0,3046.2,0.01]
[1731131718035,0.00789217,3047.1,3046.8,0.01]
[1731131718710,0.00789217,3047.1,3047.0,0.01]
[1731131719344,0.00789217,3047.1,3047.0,4.19859047]
[1731131719999,0.00789217,3047.1,3047.0,4.20859047]
[1731131720696,0.7845,3048.3,3047.1,0.01]
[1731131720901,0.7845,3048.3,3048.0,0.01]
[1731131721137,0.2449793,3049.0,3048.0,4.13683173]
[1731131721439,0.2449793,3049.0,3048.7,0.01]
[1731131721598,0.2449793,3049.0,3048.5,3.36263173]
[1731131721599,0.2449793,3049.0,3048.5,3.37263173]
[1731131722019,0.2449793,3049.0,3048.7,0.01]
[1731131723436,0.2449793,3049.0,3048.4,0.01]
[1731131723638,1.0013793,3049.0,3048.7,0.01]
[1731131726009,1.0013793,3049.0,3048.6,0.01]
[1731131726209,0.2449793,3049.0,3048.8,0.01]
[1731131726438,0.2449793,3049.0,3048.9,0.8031]
[1731131727358,0.2449793,3049.0,3048.8,0.01]
[1731131727854,0.2449793,3049.0,3048.8,3.01]
[1731131728535,0.2449793,3049.0,3048.4,0.01]
[1731131728736,0.2449793,3049.0,3048.2,0.01]
[1731131728941,0.7564,3048.9,3048.0,0.01]
[1731131729936,0.7564,3048.9,3047.5,0.01]
[1731131730150,0.7564,3048.9,3047.6,0.01]
[1731131730356,0.7564,3048.9,3047.8,0.01]
[1731131730589,0.7564,3048.9,3047.2,0.8031]
[1731131730590,0.7564,3048.9,3047.5,0.01]
[1731131730755,0.7564,3048.9,3047.7,0.01]
[1731131730920,0.7564,3048.9,3047.3,0.01]
[1731131731327,0.7564,3048.9,3047.5,0.01]
[1731131732156,0.7564,3048.9,3047.5,3.01]
[1731131732457,0.7564,3048.9,3046.9,0.8031]
[1731131732458,0.7564,3048.7,3046.9,0.01]
[1731131732651,0.01,3048.4,3046.9,0.01]
[1731131732856,0.7564,3048.3,3046.9,0.01]
[1731131733084,0.7564,3048.3,3046.7,0.7845]
[1731131733214,0.7564,3048.3,3046.7,0.7945]
[1731131733555,0.7564,3048.3,3046.7,0.01]
[1731131733765,0.7564,3048.3,3046.5,1.31203]
[1731131733930,0.7564,3047.9,3046.0,0.33958475]
[1731131734133,0.7564,3047.9,3046.1,0.065645]
[1731131734364,0.7564,3047.9,3046.3,0.01]
[1731131734768,0.7564,3047.9,3046.7,0.01]
[1731131734948,0.01,3047.8,3046.1,0.01]
[1731131735148,0.7564,3047.4,3045.9,0.33983504]
[1731131735341,0.7564,3047.1,3045.8,0.01]
[1731131736139,0.7564,3047.1,3045.5,0.01]
[1731131736493,0.7564,3047.1,3045.4,0.423271]
[1731131736494,0.7664,3047.0,3045.3,0.01]
[1731131736839,0.7664,3047.0,3045.2,0.01]
[1731131737238,0.7564,3046.7,3045.2,0.01]
[1731131737649,0.01,3046.6,3045.2,0.01]
[1731131737855,0.7564,3046.5,3045.2,0.01]
[1731131738367,0.7564,3046.5,3045.3,3.36263173]
[1731131738564,0.7564,3046.5,3045.5,0.01]
[1731131738774,0.7564,3046.5,3045.0,0.01]
[1731131739443,0.7564,3046.5,3044.9,3.36263173]
[1731131739873,0.7564,3046.5,3045.1,0.01]
[1731131740384,0.7564,3046.5,3044.9,3.37263173]
[1731131740543,0.7564,3046.5,3044.9,3.36263173]
[1731131740880,0.7564,3046.5,3044.7,0.07567861]
[1731131741180,0.7564,3046.5,3044.7,0.01]
[1731131741580,0.7564,3046.5,3044.7,0.07567922]
[1731131741884,0.7564,3046.5,3044.9,0.01]
[1731131743046,0.7861,3046.2,3044.7,0.01]
[1731131743288,0.7861,3046.2,3044.6,0.53172259]
[1731131743447,0.7861,3045.9,3044.6,0.53172259]
[1731131743786,0.7861,3045.9,3044.6,0.192]
[1731131744281,0.7861,3045.6,3044.3,0.01]
[1731131744682,0.7861,3045.6,3044.0,3.71235894]
[1731131744888,0.7861,3045.6,3044.0,0.34972721]
[1731131745090,0.7861,3045.6,3044.0,0.01]
[1731131745390,0.7861,3045.6,3043.7,0.01]
[1731131745557,0.7861,3045.2,3043.9,0.01]
[1731131745943,0.7861,3045.2,3043.9,3.43832778]
[1731131746146,0.7861,3045.2,3043.9,3.37263173]
[1731131746399,0.7861,3045.2,3044.9,0.01]
[1731131747385,0.7861,3045.2,3043.6,0.01]
[1731131747386,0.7861,3045.2,3043.8,0.01]
[1731131747592,0.7861,3045.2,3044.0,0.01]
[1731131747887,0.7861,3045.2,3044.0,0.07569623]
[1731131748463,0.7861,3045.2,3044.3,0.01]
[1731131748791,0.7861,3045.2,3044.3,0.07568935]
[1731131748983,0.7861,3045.2,3044.3,0.01]
[1731131749145,0.7861,3045.2,3044.6,0.01]
[1731131750115,0.7861,3045.2,3044.0,0.01]
[1731131750417,0.7861,3045.2,3043.9,3.0]
[1731131750418,0.7861,3045.0,3043.7,0.33991706]
[1731131750708,0.7861,3045.0,3043.6,0.01]
[1731131751304,0.7861,3045.0,3043.9,0.01]
[1731131752007,0.7861,3045.0,3044.2,0.01]
[1731131752378,0.7861,3045.0,3043.9,0.01]
[1731131752579,0.7861,3045.0,3044.1,0.01]
[1731131753266,0.7861,3045.0,3043.9,0.01]
[1731131753904,0.7861,3045.0,3043.7,3.37263173]
[1731131754107,0.7861,3045.0,3043.3,3.71254613]
[1731131754279,0.01,3044.3,3043.3,0.3399144]
[1731131754479,0.7652,3043.8,3042.6,0.24896924]
[1731131754701,0.7652,3043.8,3041.9,0.01]
[1731131754702,0.7752,3043.8,3041.9,1.66393804]
[1731131754879,0.7652,3043.6,3041.9,0.34996004]
[1731131755079,0.7652,3043.2,3041.9,0.33996004]
[1731131755292,0.01,3043.0,3041.9,0.33996004]
[1731131755477,0.01,3043.0,3041.9,0.28996004]
[1731131755478,0.7652,3042.9,3041.9,0.28996004]
[1731131755674,0.7652,3042.9,3041.2,0.01]
[1731131756076,0.7652,3042.9,3041.4,3.36263173]
[1731131756275,3.0,3043.6,3041.0,0.01]
[1731131756276,0.7652,3042.6,3041.0,0.01]
[1731131756512,0.7652,3042.6,3040.9,3.36263173]
[1731131756513,0.7652,3042.6,3040.9,3.37263173]
[1731131756677,0.7652,3042.4,3040.9,3.37263173]
[1731131756983,0.7652,3042.4,3040.9,3.36263173]
[1731131757319,0.7652,3042.0,3040.2,0.01]
[1731131757488,0.7652,3042.0,3040.1,0.33499781]
[1731131757489,0.7652,3042.0,3040.6,0.01]
[1731131757690,0.7652,3042.0,3040.8,0.01]
[1731131758219,0.7652,3042.0,3040.4,4.54525828]
[1731131758220,0.7652,3042.0,3041.3,0.01]
[1731131758509,0.7652,3042.0,3040.5,0.01]
[1731131759589,0.7752,3042.0,3040.5,0.01]
[1731131759901,0.7652,3042.0,3040.4,3.78005828]
[1731131760072,0.7752,3042.0,3040.4,3.78005828]
[1731131760278,0.7652,3041.8,3040.0,0.01]
[1731131760520,0.7752,3041.8,3040.0,0.01]
[1731131760882,0.7652,3041.5,3040.0,0.01]
[1731131761102,0.7652,3041.4,3040.0,0.01]
[1731131761312,0.7652,3041.4,3039.9,0.192]
[1731131761630,0.7652,3041.3,3039.7,0.01]
[1731131762120,0.7652,3041.3,3039.7,0.07578818]
[1731131762296,0.7652,3041.3,3040.2,0.01]
[1731131763675,0.7652,3041.3,3040.1,3.78005828]
[1731131764588,0.7652,3041.3,3040.0,3.78005828]
[1731131764813,0.7652,3041.3,3040.2,0.01]
[1731131765299,0.7652,3041.3,3040.0,3.78005828]
[1731131765300,0.7652,3041.3,3040.4,0.01]
[1731131765624,0.7652,3041.3,3040.5,3.78005828]
[1731131766338,0.7652,3041.3,3041.0,3.78005828]
[1731131767116,0.01,3042.8,3041.0,3.78005828]
[1731131767117,0.801,3042.7,3041.0,3.78005828]
[1731131767291,0.801,3042.7,3041.5,3.78005828]
[1731131769290,0.801,3042.7,3041.6,0.01]
[1731131769492,0.801,3042.7,3040.8,0.7878]
[1731131769493,0.801,3042.7,3042.0,3.78005828]
[1731131772238,0.801,3042.7,3041.5,3.78005828]
[1731131772598,1.351,3042.6,3040.9,15.95005828]
[1731131772831,0.01,3041.9,3040.3,3.78005828]
[1731131773042,0.801,3041.5,3040.2,0.01]
[1731131773334,0.55,3041.4,3040.2,3.78005828]
[1731131773548,0.801,3041.3,3040.2,3.78005828]
[1731131773900,0.7183127,3041.3,3040.2,3.78005828]
[1731131774100,0.55,3041.4,3040.2,3.78005828]
[1731131774331,0.01,3041.5,3040.2,3.78005828]
[1731131775244,0.01,3041.9,3040.2,3.78005828]